Cogmind - Beta 16 @@@ ROGUE MODE // 2026.01.27 @ 16:15:45 Player: CrispyGuts Result: Destroyed by D-53 Grenadier with Mini Grenade Launcher Performance ------------- Evolutions (0) 0 Regions Visited (2) 400 Robots Destroyed (8) 40 Value Destroyed (59) 59 Prototype IDs (0) 0 Alien Tech Used (0) 0 Bonus (0) 0 TOTAL SCORE: 499 Bonus ------- None Cogmind --------- Core Integrity 0/250 Matter 276/300 Energy 100/100 System Corruption 0% Temperature Cool (0) Movement Core (150) Ox2 Location -10/Mines Parts ------- > --- POWER (1) -------- (None) > --- PROPULSION (2) --- (None) > --- UTILITY (2) ------ Small Storage Unit > --- WEAPON (2) ------- Beam Cannon > --- INVENTORY (8) ---- Ion Engine Light Ion Engine Improved Terrain Scanner Seismic Detector ECM Suite Beam Cannon Mining Laser Peak State ------------ > --- POWER ------------ Light Ion Engine > --- PROPULSION ------- Aluminum Leg Aluminum Leg > --- UTILITY ---------- Small Storage Unit Seismic Detector > --- WEAPON ----------- EM Pulse Gun Medium Laser > --- INVENTORY -------- Ion Engine Light Ion Engine Light Treads Improved Terrain Scanner Seismic Detector ECM Suite Small Laser Mining Laser [Rating: 8] Favorites ----------- Power Ion Engine Engine Ion Engine Propulsion Aluminum Leg Leg Aluminum Leg Utility Small Storage Unit Device Seismic Detector Storage Small Storage Unit Weapon EM Pulse Gun Energy Gun EM Pulse Gun Energy Cannon Beam Cannon Ballistic Gun Assault Rifle Build | -11 -10 -10 ------- Run | Yrd Mat Min Slots Evolved . | . . . Power . | . . . Propulsion . | . . . Utility . | . . . Weapon . | . . . Parts Attached 11 | 7 2 2 Power 2 | 1 1 . Engine 2 | 1 1 . Core . | . . . Reactor . | . . . Propulsion 2 | 2 . . Treads . | . . . Leg 2 | 2 . . Wheel . | . . . Hover . | . . . Flight . | . . . Utility 2 | 2 . . Device 1 | 1 . . Storage 1 | 1 . . Processor . | . . . Hackware . | . . . Protection . | . . . Artifact . | . . . Weapon 5 | 2 1 2 Energy Gun 2 | 2 . . Energy Cannon 2 | . 1 1 Ballistic Gun 1 | . . 1 Ballistic Cannon . | . . . Launcher . | . . . Special Weapon . | . . . Impact Weapon . | . . . Slashing Weapon . | . . . Piercing Weapon . | . . . Special Melee Weapon . | . . . Unidentified Prototypes . | . . . Parts Lost 6 | . . 6 Power 1 | . . 1 Propulsion 2 | . . 2 Utility 1 | . . 1 Weapon 2 | . . 2 Highest Loss Streak 6 | . . 6 To Critical Strikes . | . . . Average Backups 6 | 5 7 7 Power 1 | 1 2 2 Propulsion . | . . . Utility 2 | 1 2 3 Weapon 2 | 1 2 2 Tool/Special . | . . . Unused Backups 8 | . 3 5 Power 2 | . 1 1 Propulsion 1 | . 1 . Utility 3 | . . 3 Weapon 2 | . 1 1 Tool/Special . | . . . Average Slot Usage (%) 96 | . 100 89 Engine 12 | . 14 10 Leg 26 | . 28 24 Device 14 | . 14 14 Storage 14 | . 14 14 Energy Gun 17 | . 20 10 Energy Cannon 9 | . 7 12 Peak Build Rating 8 | 7 8 8 Average Rating 6 | 5 7 6 On Entrance 5 | . 7 8 Avg Prop Armor Cover (%) . | . . . Naked Turns . | . . . Heaviest Build 16 | 13 16 16 Greatest Support 20 | 20 20 20 Greatest Overweight (x) 2 | . . 2 Average Overweight (x) . | . . . Largest Inventory Capacity 8 | 8 8 8 Average Capacity 7 | 7 8 8 Most Carried 8 | 8 8 8 Average Carried 6 | 5 7 7 Final Capacity 8 | 8 8 8 Final Carried 8 | 7 8 7 Class Distribution -------------------- 100% | Mutant Dominant Class ---------------- Mutant | -10/Materials Mutant | -10/Mines Resources | -11 -10 -10 ----------- Run | Yrd Mat Min Matter Collected 290 | 260 30 . Remotely . | . . . Salvage Created 317 | 220 78 19 Parts 20 | 18 2 . Haulers Intercepted 1 | . 1 . Recyclers Shooed 1 | 1 . . Parts Field Recycled . | . . . Retrieved Matter . | . . . Parts Self-Destructed . | . . . Prevented . | . . . Parts Restored . | . . . Kills | -11 -10 -10 ------- Run | Yrd Mat Min Combat Hostiles Destroyed 1 | . . 1 Guns 1 | . . 1 Classes Destroyed 5 | 2 2 1 Tunneler 5 | 5 . . Hauler 1 | . 1 . Recycler 1 | 1 . . Watcher 1 | . 1 . Assembled 1 | . . 1 Best Kill Streak 4 | 4 1 1 Combat Bots Only 1 | . . 1 Max Kills in Single Turn 1 | 1 1 1 Gunslinging . | . . . Exploded . | . . . Melee . | . . . Uniques/NPCs Destroyed . | . . . Combat | -11 -10 -10 -------- Run | Yrd Mat Min Hostile Shots Fired 72 | . . 72 Missed 11 | . . 11 Hits 61 | . . 61 Projectile 61 | . . 61 AOE 4 | . . 4 Part Disruptions 3 | . . 3 Damage Taken 888 | . . 888 Core 270 | . . 270 Absorbed by Shields . | . . . Core Remaining (%) 100 | 100 . . Volleys Fired 32 | 12 8 12 Largest 2 | 2 2 2 Hottest 120 | 90 100 120 Shots Fired 56 | 24 16 16 Gun 50 | 24 14 12 Cannon 6 | . 2 4 Launcher . | . . . Special . | . . . Kinetic 8 | . . 8 Thermal 24 | 12 8 4 Explosive . | . . . Electromagnetic 24 | 12 8 4 Robot Hit Streak 5 | 3 3 5 Robot Miss Streak 3 | 3 3 3 Penetration Max . | . . . Secondary Targets . | . . . Shots Hit Robots 33 | 13 10 10 Core Hits 12 | 6 3 3 Critical Kills . | . . . Critical Parts Destroyed . | . . . Critical Strikes 3 | 2 1 . Burn 3 | 2 1 . Melee Attacks . | . . . Impact . | . . . Slashing . | . . . Piercing . | . . . Sneak Attacks . | . . . Combat Hostiles . | . . . Follow-up Attacks . | . . . Damage Inflicted 485 | 184 172 129 Guns 392 | 184 115 93 Cannons 71 | . 35 36 Explosions 22 | . 22 . Melee . | . . . Ramming . | . . . Kinetic 82 | . . 82 Thermal 219 | 88 95 36 Explosive . | . . . Electromagnetic 184 | 96 77 11 Impact . | . . . Slashing . | . . . Piercing . | . . . Highest Corruption . | . . . Average Corruption . | . . . Corruption Purged . | . . . Corruption Blocked . | . . . Overload Shots . | . . . Overflow Damage . | . . . Projectiles . | . . . Explosions . | . . . Melee . | . . . Knockbacks . | . . . Impact . | . . . Kinetic . | . . . Secondary . | . . . Self-Inflicted Damage . | . . . Shots . | . . . Rammed . | . . . Targets Rammed . | . . . Kicked . | . . . Crushed . | . . . Highest Temperature 205 | 94 132 205 Average Temperature 64 | 29 54 122 Received Heat Transfer 320 | . . 320 Siege Activations . | . . . Martial Activations . | . . . Shielding Activations . | . . . Robots Disrupted . | . . . Combat Hostiles . | . . . Robots Corrupted . | . . . Combat Hostiles . | . . . Parts Fried . | . . . Impact Corruptions . | . . . Robots Melted . | . . . Combat Hostiles . | . . . Parts Melted 1 | . 1 . Heat Transferred 790 | 407 309 74 Parts Sabotaged . | . . . Parts Stolen . | . . . Parts Stripped . | . . . Power Chain Reactions 1 | . 1 . Alert | -11 -10 -10 ------- Run | Yrd Mat Min Maximum Alert Level . | . . . Low Security (%) 100 | 100 100 100 Level 1 . | . . . Level 2 . | . . . Level 3 . | . . . Level 4 . | . . . Level 5 . | . . . High Security . | . . . Max Security . | . . . Peak Influence 26 | 10 26 6 Initial 6 | . . 6 Average 1 | 1 2 1 Influence Increases 78 | 30 48 . Destroy 0b10 Robot/NC 40 | 30 10 . Destroy Leader 4 | . 4 . Successful Hack 31 | . 31 . Destroy Structure 3 | . 3 . Influence Decreases 78 | 30 32 16 Entered New Map 10 | . . 10 Time Decay 68 | 30 32 6 Squads Dispatched . | . . . Investigation . | . . . Extermination . | . . . Reinforcement . | . . . Assault . | . . . Garrison . | . . . Intercept . | . . . Searches Triggered . | . . . Construction Impeded . | . . . Haulers Reinforced . | . . . Active Scanning Responses . | . . . Cargo Convoy Interrupts . | . . . Stealth | -11 -10 -10 --------- Run | Yrd Mat Min Distress Signals . | . . . Communications Jammed . | . . . Distress Signals . | . . . Times Spotted 20 | . 1 19 Peak Tracking Total 16 | . 1 16 Tactical Retreats 1 | . . 1 Traps | -11 -10 -10 ------- Run | Yrd Mat Min Traps Triggered . | . . . Indirectly . | . . . Trap Hack Attempts . | . . . Triggered . | . . . Disarmed . | . . . Reprogrammed . | . . . Reused . | . . . Traps Extracted . | . . . Installed . | . . . Triggered . | . . . Machines | -11 -10 -10 ---------- Run | Yrd Mat Min Machines Disabled . | . . . Max in Single Turn . | . . . Machines Repaired . | . . . Machines Dismantled . | . . . Machines Sabotaged . | . . . Overloaded Fab Kills . | . . . Hacking | -11 -10 -10 --------- Run | Yrd Mat Min Machines Accessed 2 | . 2 . Terminals 2 | . 2 . Fabricators . | . . . Repair Stations . | . . . Recycling Units . | . . . Scanalyzers . | . . . Garrison Access . | . . . Total Hacks 5 | . 5 . Successful 3 | . 3 . Failed 2 | . 2 . Catastrophic 2 | . 2 . Database Lockouts . | . . . Manual 2 | . 2 . Terminals 5 | . 5 . Fabricators . | . . . Repair Stations . | . . . Recycling Units . | . . . Scanalyzers . | . . . Garrison Access . | . . . Terminal Hacks 1 | . 1 . Branch Access Points 1 | . 1 . Fabricator Hacks . | . . . Repair Station Hacks . | . . . Recycling Unit Hacks . | . . . Scanalyzer . | . . . Garrison Access Hacks . | . . . Unauthorized Hacks 2 | . 2 . Terminals 2 | . 2 . Botnet 2 | . 2 . Fabricators . | . . . Repair Stations . | . . . Recycling Units . | . . . Scanalyzers . | . . . Garrison Access . | . . . Data Cores Recovered . | . . . Used . | . . . Hacking Detections 2 | . 2 . Full Trace Events 1 | . 1 . Feedback Events . | . . . Feedback Blocked . | . . . Robot Schematics Acquired . | . . . Robots Built . | . . . Authchips . | . . . Time . | . . . Total Robot Build Rating . | . . . Part Schematics Acquired . | . . . Parts Built . | . . . Authchips . | . . . Time . | . . . Total Part Build Rating . | . . . Part Studies Acquired . | . . . Parts Repaired . | . . . Time . | . . . Parts Recycled . | . . . Recycled Matter . | . . . Retrieved Matter . | . . . Retrieved Components . | . . . Parts Scanalyzed . | . . . Part Schematics Acquired . | . . . Parts Damaged . | . . . Bothacking | -11 -10 -10 ------------ Run | Yrd Mat Min Used RIF Installer . | . . . Robots Hacked . | . . . Non-combat . | . . . Combat . | . . . Robot Hacks Applied . | . . . Relay Couplers Released . | . . . Fabnet Peak Effective % . | . . . Robots Rewired . | . . . Allies Hacked . | . . . Hacks Repelled . | . . . Allies | -11 -10 -10 -------- Run | Yrd Mat Min Total Allies . | . . . Largest Group . | . . . Highest-Rated Group . | . . . Highest-Rated Ally . | . . . Total Orders . | . . . Ally Attacks . | . . . Total Damage . | . . . Kills . | . . . Allies Corrupted . | . . . Allies Melted . | . . . Intel | -11 -10 -10 ------- Run | Yrd Mat Min Active Infowar (turns) 306 | 4 208 94 Seismic 306 | 4 208 94 Robot Analysis Total . | . . . Derelict Logs Recovered . | . . . Drone Launches . | . . . Drone Recoveries . | . . . Exploration | -11 -10 -10 ------------- Run | Yrd Mat Min Turns Passed 517 | 209 208 100 Spaces Moved 302 | 128 120 54 Core 15 | 4 . 11 Treads . | . . . Legs 287 | 124 120 43 Wheels . | . . . Hover . | . . . Flight . | . . . Fastest Speed 50 | 50 120 120 Average Speed 120 | 117 120 126 Slowest Speed 150 | 120 120 150 Overloaded Moves . | . . . Propulsion Burnouts . | . . . Robots Hopped . | . . . Potential Cave-ins 4 | . . 4 Cave-ins Triggered . | . . . Exploration Rate (%) 15 | 4 27 16 Regions Visited 2 Branch Regions 1 Pre-discovered Areas . | . . . Known Exits Taken 1 | . 1 . Unknown Exits Taken 1 | 1 . . Scrap Searched . | . . . Spaces Dug . | . . . Terrain Destroyed 3 | . 3 . Melee . | . . . Projectile . | . . . AOE 3 | . 3 . Terrain Rammed . | . . . Walls Destroyed . | . . . Machines Disabled . | . . . Actions | -11 -10 -10 --------- Run | Yrd Mat Min Total 399 | 160 169 70 Wait 38 | 4 34 . Move 300 | 127 119 54 Hop . | . . . Pick Up 13 | 10 3 . Fast Attach 4 | 4 . . Attach 5 | 3 . 2 Detach 1 | . . 1 Swap 3 | . 2 1 Drop 3 | . 3 . Fire 32 | 12 8 12 Melee . | . . . Ram . | . . . Kick . | . . . Crush . | . . . Escape Stasis . | . . . Rewire . | . . . Trap . | . . . Miscellaneous . | . . . Route ------- -11/Scrapyard -10/Materials -10/Mines History --------- Turn | Location | Event 30 | -11/Scrapyard | Discovered new exit (range 16) 210 | -11/Scrapyard | Entered Materials 301 | -10/Materials | Build established: Mutant 381 | -10/Materials | Discovered new exit (range 15) 401 | -10/Materials | Identified exit to Mines 418 | -10/Materials | Entered Mines 440 | -10/Mines | Assembled infested the area 445 | -10/Mines | Assisted by a Guerilla fighting off Assembled 501 | -10/Mines | Core integrity fell below 50% 513 | -10/Mines | Core integrity fell below 20% 518 | -10/Mines | Destroyed by D-53 Grenadier with Mini Grenade Launcher Last Messages --------------- 00457_ as-21680 destroyed. 00483_ Destroyed Asb. Hover Unit. 00485_ as-03921 destroyed. 00486_ Ion Engine destroyed. 00487_ EM Pulse Gun destroyed. 00494_ Aluminum Leg destroyed. 00495_ Assault Rifle destroyed. 00501_ Aluminum Leg destroyed. 00507_ The unstable cave ceiling collapses. 00510_ as-72795 destroyed. 00510_ as-15888 destroyed. 00510_ as-46463 destroyed. 00510_ as-30504 destroyed. 00512_ Seismic Detector destroyed. 00514_ U-05 Engineer lays Concrete. 00515_ The unstable cave ceiling collapses. 00515_ U-05 Engineer lays Concrete. 00516_ R-06 Scavenger collects Wheel. 00516_ U-05 Engineer lays Concrete. 00518_ The unstable cave ceiling collapses. Map ----- +----------------------------------------------------+ | ?????????????????????????????????????????????????? | | ?????????????????????????????????????????????????? | | ?????????????????????????????????????????????????? | | ?????????????????????????????????????????????????? | | ?????????????????????????????????????????????????? | | ?????????????????????????????????????????????????? | | ?????????????????????????????????????????????????? | | ?????????????????????????????????????????????????? | | ?????????????????????????????????????????????????? | | ?????????????????????????????????????????????????? | | ??????????????????????? ????????????????????????? | | ????????????????????? ????????????????????????? | | ????????????????????? #???????????????????????? | | ????????????????????? ##?????????????????????? | | ????????????????????? ##????????????????????? | | ?????????????????????#u #????????????????????? | | ????????????????????## #????????????????????? | | ???????????????????## ?????????????????????? | | ???????????????????? ##??"" ??????????????? | | ???????????????????## #?""" "?????????????? | | ???????????????????# % # ? """???????????????? | | ?????????????????### ## ????????????????? | | ???????????????# # < ??????????????????? | | ???????????????# ## #???????????????????? | | ???????????????# t #???????????????????? | | ???????????????# @ #???????????????????? | | ?????????????????# #???????????????????? | | ?????????????????## r ##?????????????????? | | ?????????????????# #?????????????????? | | ?????????????????# # # #?????????????????? | | ?????????????????#### #? ????????????????? | | ????????????????????# a##?# #??????????????? | | ????????????????????# d [ #???#??????????????? | | ???????????????????#%%## #??????????????????? | | ???????????????????## ##! #??????????????????? | | ????????????????????# ## % #??????????????????? | | ????????????????????# ## ##??????????????????? | | ????????????????????# # ##???????????????????? | | ????????????????????# # %% ##???????????????????? | | ????????????????????# ## % ###?????????????????? | | ??????????????####### ## ##????????????????? | | ??????????????# #????????????????? | | ??????????????# ## #### #???????????????? | | ??????????????# ^ #^#####! ! #???????????????? | | ??????????????#^ # ##### ##???????????????? | | ??????????????# # ##?# ##????????????????? | | ??????????????# ^ ### #?????????????????? | | ??????????????##### ##?????????????????? | | ??????????????????## #??????????????????? | | ???????????????????############??????????????????? | +----------------------------------------------------+ Best States ------------- Heat Dissipation 25 Energy Generation 10 Energy Capacity 250 Matter Stores 300 Matter Capacity 300 Sight Range 16 Terrain Scan Density 10 Evasion (%) 55 Item Schematics ----------------- None Robot Schematics ------------------ None Fabricated ------------ Nothing Repaired ---------- Nothing Studied --------- None Alien Tech Used ----------------- None Achievements -------------- None Challenges ------------ None Game ------ Seed ConstructArmoredCannon Manual? 0 Play Time 00:07:56 Cumulative 135.5 hours Start 2026.01.27 @ 16:09:46 End 2026.01.27 @ 16:15:45 Sessions 1 Manual Loads 0 Difficulty Rogue Special Mode None Game No. 62 Rogue 1 Adventurer 61 Explorer 0 Win Type - Total 2 Types 1/0/0/0/0/0/0/0/0/1 Lore% 60 Gallery% 56 Achievement% 44 Wizard Run 0 Options --------- Layout 0 ASCII 0 Keyboard 0 Movement Mouse Keybinds 0 Fullscreen 2 Font 24/Smallcaps Map View 76x50 Zoom Use 0% Tactical HUD 1 Map Filters NONE Filters NONE Steam 1 RUN: 81f9b38f-4c8d-4d36-bf28-95f1580101f1